fUST/lending_fUST_20250713
["ID","MTS","AMOUNT","RATE_DAILY","PERIOD"]
[371561476,1752354643041,-151.0,0.00016983,2]
[371561477,1752354643051,-151.0,0.00016983,2]
[371561478,1752354643060,-151.0,0.00016983,2]
[371561479,1752354643070,-362.886254,0.00016983,2]
[371561480,1752354643079,-362.886254,0.00016983,2]
[371561481,1752354643092,-151.0,0.00016983,2]
[371561482,1752354643103,-151.0,0.00016983,2]
[371561483,1752354643114,-151.0,0.00016983,2]
[371561484,1752354643123,-151.0,0.00016983,2]
[371561485,1752354643134,-151.0,0.00016983,2]
[371561486,1752354643143,-200.073703,0.00016983,2]
[371561487,1752354643153,-151.0,0.00016983,2]
[371561488,1752354643162,-151.0,0.00016983,2]
[371561489,1752354643172,-460.0,0.00016983,2]
[371561490,1752354643182,-151.0,0.00016983,2]
[371561491,1752354643191,-460.0,0.00016983,2]
[371561492,1752354643201,-151.0,0.00016983,2]
[371561493,1752354643213,-460.0,0.00016983,2]
[371561494,1752354643224,-151.0,0.00016983,2]
[371561495,1752354643234,-151.0,0.00016983,2]
[371561496,1752354643245,-209.073815,0.00016983,2]
[371561497,1752354643255,-209.073815,0.00016983,2]
[371561498,1752354643266,-460.0,0.00016983,2]
[371561499,1752354643277,-151.0,0.00016983,2]
[371561500,1752354643287,-460.0,0.00016983,2]
[371561501,1752354643296,-460.0,0.00016984,2]
[371561502,1752354643306,-460.0,0.00016984,2]
[371561503,1752354643315,-460.0,0.00016984,2]
[371561504,1752354643324,-460.0,0.00016984,2]
[371561505,1752354643334,-282.67584232,0.00016984,2]
[371561506,1752354643343,-460.0,0.00016984,2]
[371561507,1752354643352,-460.0,0.00017085,2]
[371561508,1752354643362,-460.0,0.00017085,2]
[371561509,1752354643372,-460.0,0.00017085,2]
[371561510,1752354643381,-460.0,0.00017085,2]
[371561511,1752354643390,-460.0,0.00017085,2]
[371561512,1752354643399,-460.0,0.00017085,2]
[371561513,1752354643409,-638.34,0.00017085,2]
[371561514,1752354643418,-460.0,0.00017085,2]
[371561515,1752354643428,-460.0,0.00017085,2]
[371561516,1752354643437,-460.0,0.00017086,2]
[371561517,1752354643446,-588.29,0.00017086,2]
[371561518,1752354643456,-460.0,0.00017086,2]
[371561519,1752354643466,-696.29,0.00017086,2]
[371561521,1752354643476,-460.0,0.00017086,2]
[371561522,1752354643485,-1243.22,0.00017086,2]
[371561523,1752354643496,-460.0,0.00017086,2]
[371561524,1752354643506,-460.0,0.00017086,2]
[371561525,1752354643515,-460.0,0.00017086,2]
[371561526,1752354643525,-460.0,0.00017086,2]
[371561527,1752354643534,-460.0,0.00017086,2]
[371561528,1752354643544,-460.0,0.00017086,2]
[371561529,1752354643554,-902.12,0.00017086,2]
[371561530,1752354643563,-460.0,0.00017086,2]
[371561531,1752354643573,-460.0,0.00017086,2]
[371561532,1752354643583,-506.19,0.00017086,2]
[371561533,1752354643593,-460.0,0.00017086,2]
[371561534,1752354643603,-460.0,0.00017086,2]
[371561535,1752354643612,-460.0,0.00017086,2]
[371561536,1752354643621,-460.0,0.00017086,2]
[371561537,1752354643631,-460.0,0.00017086,2]
[371561538,1752354643640,-460.0,0.00017086,2]
[371561539,1752354643650,-460.0,0.00017086,2]
[371561540,1752354643660,-460.0,0.00017086,2]
[371561541,1752354643670,-460.0,0.00017086,2]
[371561542,1752354643680,-460.0,0.00017086,2]
[371561543,1752354643690,-460.0,0.00017086,2]
[371561544,1752354643700,-460.0,0.00017087,2]
[371561545,1752354643710,-460.0,0.00017087,2]
[371561546,1752354643719,-460.0,0.00017087,2]
[371561547,1752354643729,-460.0,0.00017087,2]
[371561548,1752354643739,-171.14,0.00017087,2]
[371561549,1752354643749,-196.23,0.00017087,2]
[371561550,1752354643759,-460.0,0.00017087,2]
[371561551,1752354643768,-460.0,0.00017087,2]
[371561552,1752354643778,-460.0,0.00017087,2]
[371561553,1752354643787,-460.0,0.00017087,2]
[371561554,1752354643796,-460.0,0.00017087,2]
[371561555,1752354643806,-460.0,0.00017087,2]
[371561556,1752354643815,-460.0,0.00017087,2]
[371561557,1752354643825,-460.0,0.00017087,2]
[371561558,1752354643835,-2192.74,0.00017087,2]
[371561559,1752354643844,-460.0,0.00017087,2]
[371561560,1752354643853,-460.0,0.00017087,2]
[371561561,1752354643862,-1283.73,0.00017087,2]
[371561562,1752354643872,-350.71,0.00017087,2]
[371561563,1752354643882,-460.0,0.00017087,2]
[371561564,1752354643891,-460.0,0.00017087,2]
[371561565,1752354643901,-460.0,0.00017087,2]
[371561566,1752354643911,-460.0,0.00017087,2]
[371561567,1752354643920,-612.42,0.00017087,2]
[371561568,1752354643930,-703.79,0.00017087,2]
[371561569,1752354643939,-496.58,0.00017087,2]
[371561570,1752354643949,-460.0,0.00017087,2]
[371561571,1752354643959,-153.37,0.00017087,2]
[371561572,1752354643968,-460.0,0.00017087,2]
[371561573,1752354643978,-151.0,0.00017087,2]
[371561574,1752354643988,-334.55763364,0.0001712,2]
[371561575,1752354643998,-500.0,0.00017153,2]
[371561576,1752354644007,-500.0,0.00017153,2]
[371561577,1752354644017,-500.0,0.00017153,2]
[371561578,1752354644027,-500.0,0.00017153,2]
[371561579,1752354644036,-500.0,0.00017153,2]
[371561580,1752354644045,-500.0,0.00017153,2]
[371561581,1752354644054,-500.0,0.00017153,2]
[371561582,1752354644064,-500.0,0.00017153,2]
[371561583,1752354644073,-500.0,0.00017153,2]
[371561584,1752354644083,-336.0,0.00017159,2]
[371561585,1752354644096,-1380.20571853,0.0001721,2]
[371561586,1752354644106,-151.0,0.00017255,2]
[371561587,1752354644230,-151.0,0.00017255,2]
[371561588,1752354644242,-151.0,0.00017255,2]
[371561589,1752354644252,-151.0,0.00017255,2]
[371561590,1752354644261,-151.0,0.00017255,2]
[371561591,1752354644282,-151.0,0.00017255,2]
[371561592,1752354644294,-151.0,0.00017255,2]
[371561593,1752354644304,-151.0,0.00017255,2]
[371561594,1752354644314,-151.0,0.00017255,2]
[371561595,1752354644324,-151.0,0.00017255,2]
[371561596,1752354644335,-460.0,0.00017256,2]
[371561597,1752354644345,-460.0,0.00017256,2]
[371561598,1752354644355,-460.0,0.00017256,2]
[371561599,1752354644364,-460.0,0.00017256,2]
[371561600,1752354644374,-460.0,0.00017256,2]
[371561601,1752354644384,-460.0,0.00017256,2]
[371561602,1752354644394,-460.0,0.00017256,2]
[371561603,1752354644404,-460.0,0.00017256,2]
[371561604,1752354644414,-460.0,0.00017256,2]
[371561605,1752354644424,-460.0,0.00017256,2]
[371561606,1752354644434,-1910.75,0.00017256,2]
[371561607,1752354644444,-460.0,0.00017256,2]
[371561608,1752354644453,-460.0,0.00017256,2]
[371561609,1752354644464,-460.0,0.00017256,2]
[371561610,1752354644474,-460.0,0.00017256,2]
[371561611,1752354644484,-460.0,0.00017257,2]
[371561612,1752354644495,-485.04,0.00017257,2]
[371561613,1752354644505,-460.0,0.00017257,2]
[371561614,1752354644515,-190.26,0.00017257,2]
[371561615,1752354644525,-460.0,0.00017257,2]
[371561616,1752354644535,-460.0,0.00017258,2]
[371561617,1752354644545,-161.821658,0.0001728,2]
[371561618,1752354644555,-500.0,0.00017321,2]
[371561619,1752354644564,-500.0,0.00017321,2]
[371561620,1752354644574,-1000.0,0.00017321,2]
[371561621,1752354644584,-647.00222637,0.00017321,2]
[371561622,1752354644594,-151.0,0.00017321,2]
[371561623,1752354644605,-151.0,0.00017321,2]
[371561624,1752354644616,-151.0,0.00017321,2]
[371561625,1752354644626,-151.0,0.00017321,2]
[371561626,1752354644636,-273.071109,0.00017321,2]
[371561627,1752354644646,-151.0,0.00017321,2]
[371561628,1752354644656,-151.0,0.00017321,2]
[371561629,1752354644666,-151.0,0.00017321,2]
[371561630,1752354644676,-151.0,0.00017321,2]
[371561631,1752354644685,-151.0,0.00017321,2]
[371561632,1752354644695,-151.0,0.00017321,2]
[371561633,1752354644705,-151.0,0.00017321,2]
[371561634,1752354644715,-500.0,0.00017328,2]
[371561635,1752354644725,-500.0,0.00017328,2]
[371561636,1752354644735,-151.0,0.00017328,2]
[371561637,1752354644746,-151.0,0.00017328,2]
[371561638,1752354644756,-151.0,0.00017328,2]
[371561639,1752354644767,-151.0,0.00017328,2]
[371561640,1752354644777,-362.886254,0.00017328,2]
[371561641,1752354644787,-362.886254,0.00017328,2]
[371561642,1752354644798,-151.0,0.00017328,2]
[371561643,1752354644808,-209.073815,0.00017328,2]
[371561644,1752354644818,-209.073815,0.00017328,2]
[371561645,1752354644828,-151.0,0.00017328,2]
[371561646,1752354644838,-460.0,0.00017359,2]
[371561647,1752354644847,-460.0,0.00017359,2]
[371561648,1752354644856,-460.0,0.00017359,2]
[371561649,1752354644866,-460.0,0.00017359,2]
[371561650,1752354644875,-460.0,0.00017359,2]
[371561651,1752354644885,-638.34,0.00017359,2]
[371561652,1752354644899,-460.0,0.00017359,2]
[371561653,1752354644908,-460.0,0.00017359,2]
[371561654,1752354644918,-460.0,0.0001736,2]
[371561655,1752354644928,-696.29,0.0001736,2]
[371561656,1752354644938,-460.0,0.0001736,2]
[371561657,1752354644947,-1243.22,0.0001736,2]
[371561658,1752354644957,-460.0,0.0001736,2]
[371561659,1752354644967,-460.0,0.0001736,2]
[371561660,1752354644977,-460.0,0.0001736,2]
[371561661,1752354644986,-414.31,0.0001736,2]
[371561662,1752354644996,-460.0,0.0001736,2]
[371561663,1752354645007,-902.12,0.0001736,2]
[371561664,1752354645017,-596.26,0.0001736,2]
[371561665,1752354645026,-362.95,0.0001736,2]
[371561666,1752354645036,-506.19,0.0001736,2]
[371561667,1752354645046,-460.0,0.0001736,2]
[371561668,1752354645056,-460.0,0.0001736,2]
[371561669,1752354645066,-460.0,0.0001736,2]
[371561670,1752354645076,-460.0,0.0001736,2]
[371561671,1752354645089,-573.97,0.0001736,2]
[371561672,1752354645102,-460.0,0.0001736,2]
[371561673,1752354645113,-460.0,0.0001736,2]
[371561674,1752354645122,-460.0,0.0001736,2]
[371561675,1752354645133,-460.0,0.0001736,2]
[371561676,1752354645142,-151.0,0.00017361,2]
[371561677,1752354645152,-151.0,0.00017361,2]
[371561678,1752354645163,-460.0,0.00017361,2]
[371561679,1752354645173,-151.0,0.00017361,2]
[371561680,1752354645182,-208.720933,0.00017361,2]
[371561681,1752354645192,-208.720933,0.00017361,2]
[371561682,1752354645203,-165.11,0.00017361,2]
[371561683,1752354645213,-460.0,0.00017361,2]
[371561684,1752354645224,-460.0,0.00017361,2]
[371561685,1752354645235,-264.82,0.00017361,2]
[371561686,1752354645246,-460.0,0.00017361,2]
[371561687,1752354645256,-2192.74,0.00017361,2]
[371561688,1752354645266,-460.0,0.00017361,2]
[371561689,1752354645276,-460.0,0.00017361,2]
[371561690,1752354645286,-1283.73,0.00017361,2]
[371561691,1752354645295,-460.0,0.00017361,2]
[371561692,1752354645304,-460.0,0.00017361,2]
[371561693,1752354645314,-259.22,0.00017361,2]
[371561694,1752354645324,-460.0,0.00017361,2]
[371561695,1752354645334,-612.42,0.00017361,2]
[371561696,1752354645343,-703.79,0.00017361,2]
[371561697,1752354645354,-496.58,0.00017361,2]
[371561698,1752354645364,-460.0,0.00017361,2]
[371561700,1752354645374,-161.821658,0.00017401,2]
[371561702,1752354645385,-1380.20571853,0.00017521,2]
[371561704,1752354645395,-161.821658,0.00017522,2]
[371561706,1752354645404,-460.0,0.0001753,2]
[371561707,1752354645415,-460.0,0.0001753,2]
[371561708,1752354645424,-460.0,0.0001753,2]
[371561709,1752354645434,-151.0,0.0001753,2]
[371561710,1752354645444,-460.0,0.0001753,2]
[371561711,1752354645454,-151.0,0.0001753,2]
[371561712,1752354645464,-151.0,0.0001753,2]
[371561713,1752354645474,-151.0,0.0001753,2]
[371561714,1752354645484,-151.0,0.0001753,2]
[371561715,1752354645494,-460.0,0.0001753,2]
[371561716,1752354645504,-435.72,0.0001753,2]
[371561717,1752354645514,-229.26,0.0001753,2]
[371561718,1752354645524,-354.75,0.0001753,2]
[371561719,1752354645534,-1910.75,0.0001753,2]
[371561720,1752354645543,-460.0,0.0001753,2]
[371561721,1752354645555,-460.0,0.0001753,2]
[371561722,1752354645564,-151.0,0.0001753,2]
[371561723,1752354645574,-151.0,0.00017531,2]
[371561724,1752354645584,-151.0,0.00017531,2]
[371561725,1752354645594,-151.0,0.00017531,2]
[371561726,1752354645604,-151.0,0.00017531,2]
[371561727,1752354645614,-151.0,0.00017531,2]
[371561728,1752354645623,-667.199736,0.00017531,2]
[371561729,1752354645633,-151.0,0.00017531,2]
[371561730,1752354645643,-667.199736,0.00017531,2]
[371561731,1752354645653,-151.0,0.00017531,2]
[371561732,1752354645663,-151.0,0.00017531,2]
[371561733,1752354645673,-460.0,0.00017532,2]
[371561734,1752354645682,-460.0,0.00017633,2]
[371561735,1752354645692,-460.0,0.00017633,2]
[371561736,1752354645701,-591.97,0.00017633,2]
[371561737,1752354645711,-638.34,0.00017633,2]
[371561738,1752354645721,-189.10769702,0.00017633,2]
[371561739,1752354645732,-460.0,0.00017634,2]
[371561740,1752354645743,-696.29,0.00017634,2]
[371561741,1752354645753,-460.0,0.00017634,2]
[371561742,1752354645763,-1243.22,0.00017634,2]
[371561743,1752354645773,-460.0,0.00017634,2]
[371561744,1752354645783,-460.0,0.00017634,2]
[371561745,1752354645794,-460.0,0.00017634,2]
[371561746,1752354645804,-460.0,0.00017634,2]
[371561747,1752354645815,-902.12,0.00017634,2]
[371561748,1752354645824,-506.19,0.00017634,2]
[371561749,1752354645834,-460.0,0.00017634,2]
[371561750,1752354645843,-151.0,0.00017634,2]
[371561752,1752354645853,-572.2,0.00017634,2]
[371561753,1752354645863,-460.0,0.00017634,2]
[371561754,1752354645872,-309.59,0.00017634,2]
[371561755,1752354645882,-460.0,0.00017634,2]
[371561756,1752354645892,-151.0,0.00017634,2]
[371561757,1752354645901,-460.0,0.00017634,2]
[371561758,1752354645911,-151.0,0.00017634,2]
[371561759,1752354645921,-460.0,0.00017634,2]
[371561760,1752354645931,-460.0,0.00017634,2]
[371561761,1752354645940,-428.89,0.00017635,2]
[371561762,1752354645950,-460.0,0.00017635,2]
[371561763,1752354645960,-460.0,0.00017635,2]
[371561764,1752354645970,-460.0,0.00017635,2]
[371561765,1752354645979,-2192.74,0.00017635,2]
[371561766,1752354645989,-460.0,0.00017635,2]
[371561767,1752354645999,-465.82,0.00017635,2]
[371561768,1752354646008,-1283.73,0.00017635,2]
[371561769,1752354646018,-460.0,0.00017635,2]
[371561770,1752354646038,-460.0,0.00017635,2]
[371561771,1752354646048,-263.95,0.00017635,2]
[371561772,1752354646058,-612.42,0.00017635,2]
[371561773,1752354646068,-703.79,0.00017635,2]
[371561774,1752354646078,-496.58,0.00017635,2]
[371561775,1752354646090,-460.0,0.00017635,2]
[371561776,1752354646100,-161.821658,0.00017643,2]
[371561777,1752354646110,-536.15469128,0.00017663,2]
[371561778,1752354646120,-1000.0,0.00017701,2]
[371561779,1752354646131,-1000.0,0.00017701,2]
[371561780,1752354646140,-500.0,0.00017701,2]
[371561781,1752354646150,-178.41562728,0.00017708,2]
[371561782,1752354646161,-572.80138315,0.00017731,2]
[371561783,1752354646174,-161.821658,0.00017764,2]
[371561784,1752354646185,-259.8,0.00017804,2]
[371561785,1752354646196,-460.0,0.00017804,2]
[371561786,1752354646207,-274.89,0.00017804,2]
[371561787,1752354646217,-460.0,0.00017804,2]
[371561788,1752354646227,-1910.75,0.00017804,2]
[371561789,1752354646237,-151.0,0.00017804,2]
[371561790,1752354646247,-151.0,0.00017804,2]
[371561791,1752354646258,-352.73,0.00017804,2]
[371561792,1752354646267,-460.0,0.00017804,2]
[371561793,1752354646277,-151.0,0.00017804,2]
[371561794,1752354646287,-151.0,0.00017804,2]
[371561795,1752354646296,-151.0,0.00017804,2]
[371561796,1752354646306,-151.0,0.00017804,2]
[371561797,1752354646316,-151.0,0.00017804,2]
[371561798,1752354646326,-203.971645,0.00017804,2]
[371561799,1752354646336,-392.10546,0.00017805,2]
[371561800,1752354646345,-392.10546,0.00017805,2]
[371561801,1752354646355,-151.0,0.00017805,2]
[371561802,1752354646364,-151.0,0.00017805,2]
[371561803,1752354646374,-151.0,0.00017805,2]
[371561804,1752354646384,-221.541213,0.00017805,2]
[371561805,1752354646394,-151.0,0.00017805,2]
[371561806,1752354646404,-209.073815,0.00017805,2]
[371561807,1752354646413,-209.073815,0.00017805,2]
[371561808,1752354646423,-460.0,0.00017807,2]
[371561809,1752354646433,-151.0,0.00017807,2]
[371561810,1752354646443,-151.0,0.00017807,2]
[371561811,1752354646453,-151.0,0.00017807,2]
[371561812,1752354646463,-362.886254,0.00017807,2]
[371561813,1752354646472,-362.886254,0.00017807,2]
[371561814,1752354646482,-1380.20571853,0.00017831,2]
[371561815,1752354646491,-1500.0,0.00017868,2]
[371561816,1752354646502,-500.0,0.00017876,2]
[371561817,1752354646512,-262.3693145,0.00017876,2]
[371561818,1752354646522,-161.821658,0.00017885,2]
[371561819,1752354646532,-151.0,0.000179,2]
[371561820,1752354646542,-151.0,0.000179,2]
[371561821,1752354646551,-151.0,0.000179,2]
[371561822,1752354646561,-151.0,0.000179,2]
[371561823,1752354646571,-151.0,0.000179,2]
[371561824,1752354646581,-460.0,0.00017907,2]
[371561825,1752354646591,-193.64,0.00017907,2]
[371561826,1752354646600,-638.34,0.00017907,2]
[371561827,1752354646611,-460.0,0.00017908,2]
[371561828,1752354646622,-696.29,0.00017908,2]
[371561829,1752354646632,-460.0,0.00017908,2]
[371561830,1752354646642,-1243.22,0.00017908,2]
[371561831,1752354646652,-460.0,0.00017908,2]
[371561832,1752354646662,-523.25,0.00017908,2]
[371561833,1752354646672,-460.0,0.00017908,2]
[371561834,1752354646682,-460.0,0.00017908,2]
[371561835,1752354646692,-902.12,0.00017908,2]
[371561836,1752354646706,-506.19,0.00017908,2]
[371561837,1752354646717,-460.0,0.00017908,2]
[371561838,1752354646727,-156.11,0.00017908,2]
[371561839,1752354646737,-460.0,0.00017908,2]
[371561840,1752354646746,-460.0,0.00017908,2]
[371561841,1752354646756,-281.17,0.00017908,2]
[371561842,1752354646766,-460.0,0.00017908,2]
[371561843,1752354646776,-151.0,0.00017909,2]
[371561844,1752354646785,-151.0,0.00017909,2]
[371561845,1752354646795,-208.720933,0.00017909,2]
[371561846,1752354646805,-208.720933,0.00017909,2]
[371561847,1752354646814,-460.0,0.00017909,2]
[371561848,1752354646824,-507.76,0.00017909,2]
[371561849,1752354646834,-2192.74,0.00017909,2]
[371561850,1752354646845,-460.0,0.00017909,2]
[371561851,1752354646854,-1283.73,0.00017909,2]
[371561852,1752354646864,-460.0,0.00017909,2]
[371561853,1752354646874,-460.0,0.00017909,2]
[371561854,1752354646884,-612.42,0.00017909,2]
[371561855,1752354646894,-703.79,0.00017909,2]
[371561856,1752354646904,-496.58,0.00017909,2]
[371561857,1752354646914,-214.2,0.00017909,2]
[371561858,1752354646923,-151.0,0.00017909,2]
[371561859,1752354646934,-200.0,0.00018,2]
[371561860,1752354646943,-161.821658,0.00018006,2]
[371561861,1752354646953,-2730.22,0.00018069,3]
[371561862,1752354646963,-1365.1,0.00018069,3]
[371561863,1752354646972,-682.56,0.00018069,3]
[371561864,1752354646981,-341.28,0.00018069,3]
[371561865,1752354646991,-460.0,0.00018078,2]
[371561866,1752354647000,-151.0,0.00018078,2]
[371561867,1752354647010,-151.0,0.00018078,2]
[371561868,1752354647020,-151.0,0.00018078,2]
[371561869,1752354647030,-151.0,0.00018078,2]
[371561870,1752354647039,-151.0,0.00018078,2]
[371561871,1752354647051,-247.38,0.00018078,2]
[371561872,1752354647067,-1910.75,0.00018078,2]
[371561873,1752354647077,-460.0,0.00018078,2]
[371561874,1752354647088,-460.0,0.00018081,2]
[371561875,1752354647099,-161.821658,0.00018126,2]
[371561876,1752354647108,-12595.82069269,0.0001813,2]
[371561877,1752354647118,-160.0,0.0001813,2]
[371561878,1752354647127,-838.37930271,0.00018131,2]
[371561879,1752354647137,-214.25614385,0.00018131,2]
[371561880,1752354647147,-160.0,0.00018131,2]
[371561881,1752354647156,-160.0,0.00018131,2]
[371561882,1752354647168,-160.0,0.00018131,2]
[371561883,1752354647178,-215.38668925,0.00018131,2]
[371561884,1752354647187,-230.64269914,0.00018131,2]
[371561885,1752354647197,-1380.20571853,0.00018141,2]
[371561886,1752354647206,-151.0,0.00018148,2]
[371561887,1752354647216,-151.0,0.00018148,2]
[371561888,1752354647226,-239.769356,0.00018148,2]
[371561889,1752354647235,-151.0,0.00018148,2]
[371561890,1752354647399,-667.199736,0.00018148,2]
[371561891,1752354647409,-151.0,0.00018148,2]
[371561892,1752354647419,-667.199736,0.00018148,2]
[371561893,1752354647428,-151.0,0.00018148,2]
[371561894,1752354647437,-151.0,0.00018148,2]
[371561895,1752354647447,-287.096907,0.00018148,2]
[371561896,1752354647456,-460.0,0.00018181,2]
[371561897,1752354647465,-638.34,0.00018181,2]
[371561898,1752354647475,-460.0,0.00018182,2]
[371561899,1752354647485,-696.29,0.00018182,2]
[371561900,1752354647495,-178.62,0.00018182,2]
[371561901,1752354647505,-1243.22,0.00018182,2]
[371561902,1752354647514,-460.0,0.00018182,2]
[371561903,1752354647523,-460.0,0.00018182,2]
[371561904,1752354647533,-185.62207366,0.00018182,2]
[371561905,1752354647543,-902.12,0.00018182,2]
[371561906,1752354647552,-506.19,0.00018182,2]
[371561907,1752354647562,-167.77518306,0.00018182,2]
[371561908,1752354647571,-460.0,0.00018182,2]
[371561909,1752354647581,-300.05,0.00018182,2]
[371561910,1752354647591,-460.0,0.00018182,2]
[371561911,1752354647600,-151.0,0.00018183,2]
[371561912,1752354647610,-179.27,0.00018183,2]
[371561913,1752354647619,-2192.74,0.00018183,2]
[371561914,1752354647629,-460.0,0.00018183,2]
[371561915,1752354647639,-1283.73,0.00018183,2]
[371561916,1752354647648,-460.0,0.00018183,2]
[371561917,1752354647658,-460.0,0.00018183,2]
[371561918,1752354647668,-612.42,0.00018183,2]
[371561919,1752354647678,-703.79,0.00018183,2]
[371561920,1752354647688,-496.58,0.00018183,2]
[371561921,1752354647698,-161.821658,0.00018247,2]
[371561922,1752354647708,-1500.0,0.00018249,2]
[371561923,1752354647718,-1500.0,0.00018249,2]
[371561924,1752354647728,-1224.49118671,0.0001831,2]
[371561925,1752354647738,-151.0,0.00018343,2]
[371561926,1752354647749,-151.0,0.00018343,2]
[371561927,1752354647759,-151.0,0.00018343,2]
[371561928,1752354647769,-460.0,0.00018352,2]
[371561929,1752354647779,-1910.75,0.00018352,2]
[371561930,1752354647789,-460.0,0.00018352,2]
[371561931,1752354647799,-151.0,0.00018353,2]
[371561932,1752354647808,-151.0,0.00018353,2]
[371561933,1752354647817,-151.0,0.00018353,2]
[371561934,1752354647826,-151.0,0.00018353,2]
[371561935,1752354647836,-151.0,0.00018353,2]
[371561936,1752354647845,-209.073815,0.00018353,2]
[371561937,1752354647854,-209.073815,0.00018353,2]
[371561938,1752354647863,-460.0,0.00018355,2]
[371561939,1752354647873,-161.821658,0.00018368,2]
[371561940,1752354647887,-2000.0,0.00018416,2]
[371561941,1752354647897,-1380.20571853,0.00018452,2]
[371561942,1752354647906,-151.0,0.00018452,2]
[371561943,1752354647916,-151.997038,0.00018452,2]
[371561944,1752354647926,-151.0,0.00018452,2]
[371561945,1752354647935,-362.886254,0.00018452,2]
[371561946,1752354647946,-362.886254,0.00018452,2]
[371561947,1752354647955,-151.0,0.00018452,2]
[371561948,1752354647964,-460.0,0.00018455,2]
[371561949,1752354647974,-638.34,0.00018455,2]
[371561950,1752354647983,-460.0,0.00018456,2]
[371561951,1752354647992,-696.29,0.00018456,2]
[371561952,1752354648002,-1243.22,0.00018456,2]
[371561953,1752354648012,-460.0,0.00018456,2]
[371561954,1752354648021,-460.0,0.00018456,2]
[371561955,1752354648031,-902.12,0.00018456,2]
[371561956,1752354648040,-506.19,0.00018456,2]
[371561957,1752354648049,-200.82142682,0.00018456,2]
[371561958,1752354648059,-460.0,0.00018456,2]
[371561959,1752354648069,-2192.74,0.00018457,2]
[371561960,1752354648079,-378.1453759,0.00018457,2]
[371561961,1752354648089,-1283.73,0.00018457,2]
[371561962,1752354648101,-523.6550565,0.00018457,2]
[371561963,1752354648110,-460.0,0.00018457,2]
[371561964,1752354648120,-612.42,0.00018457,2]
[371561965,1752354648131,-703.79,0.00018457,2]
[371561966,1752354648140,-496.58,0.00018457,2]
[371561967,1752354648150,-161.821658,0.00018489,2]
[371561968,1752354648160,-151.0,0.00018528,2]
[371561969,1752354648169,-392.10546,0.00018528,2]
[371561970,1752354648179,-392.10546,0.00018528,2]
[371561971,1752354648189,-151.0,0.00018528,2]
[371561972,1752354648198,-151.0,0.00018528,2]
[371561973,1752354648210,-151.0,0.00018528,2]
[371561974,1752354648219,-151.0,0.00018528,2]
[371561975,1752354648231,-667.199736,0.00018528,2]
[371561976,1752354648241,-151.0,0.00018528,2]
[371561977,1752354648252,-667.199736,0.00018528,2]
[371561978,1752354648261,-151.0,0.00018528,2]
[371561979,1752354648271,-208.720933,0.00018528,2]
[371561980,1752354648281,-208.720933,0.00018528,2]
[371561981,1752354648290,-161.821658,0.0001861,2]